[Event "Gibraltar Challengers B 2020"]
[Site "Caleta"]
[Date "2020.01.26"]
[Round "2.13"]
[White "Patola, Eero"]
[Black "De Abreu, Roberto N"]
[Result "1/2-1/2"]
[ECO "A36"]
[WhiteElo "1831"]
[BlackElo "2154"]
[Annotator "ChessBase"]
[PlyCount "186"]
[EventDate "2020.01.20"]
[EventType "swiss"]
[EventCountry "GGB"]
[SourceTitle "playchess.com"]
[Source "ChessBase"]
[SourceQuality "1"]
[TimeControl "6600+10"]

1. c4 {[%emt 0:00:09]} c5 {[%emt 0:00:10]} 2. Nc3 {[%emt 0:00:06]} Nc6 {[%emt 0:00:01]} 3. g3 {[%emt 0:00:15]} g6 {[%emt 0:00:03]} 4. Bg2 {[%emt 0:00:07]} Bg7 {[%emt 0:00:02]} 5. e4 {[%emt 0:00:20]} Nf6 {[%emt 0:00:21]} 6. Nge2 {[%emt 0:00:42]} O-O {[%emt 0:00:03]} 7. O-O {[%emt 0:00:15]} Ne8 {[%emt 0:00:02]} 8. d3 {[%emt 0:00:35]} Nc7 {[%emt 0:00:02]} 9. h3 {[%emt 0:00:59]} d6 {[%emt 0:00:39]} 10. Rb1 {[%emt 0:00:37]} Rb8 {[%emt 0:06:00]} 11. Nd5 {[%emt 0:01:52]} b5 {[%emt 0:07:10]} 12. Nxc7 {[%emt 0:04:25]} Qxc7 {[%emt 0:00:02]} 13. b3 {[%emt 0:00:54]} a5 {[%emt 0:03:34]} 14. Be3 {[%emt 0:07:38]} a4 {[%emt 0:07:36]} 15. cxb5 {[%emt 0:07:44]} Rxb5 {[%emt 0:00:03]} 16. d4 {[%emt 0:05:58]} axb3 {[%emt 0:00:51]} 17. axb3 {[%emt 0:01:12]} cxd4 {[%emt 0:00:32]} 18. Nxd4 {[%emt 0:01:02]} Nxd4 {[%emt 0:00:59]} 19. Bxd4 {[%emt 0:00:16]} Bxd4 {[%emt 0:00:35]} 20. Qxd4 {[%emt 0:00:10]} Be6 {[%emt 0:00:10]} 21. b4 {[%emt 0:05:14]} Rc8 {[%emt 0:03:37]} 22. Rfe1 {[%emt 0:06:16]} Qc3 {[%emt 0:09:53]} 23. Qxc3 {[%emt 0:09:45]} Rxc3 {[%emt 0:00:02]} 24. Rb2 {[%emt 0:00:24]} Bc4 {[%emt 0:01:10]} 25. Bf1 {[%emt 0:05:10]} Bxf1 {[%emt 0:00:10]} 26. Kxf1 {[%emt 0:00:39]} Rc4 {[%emt 0:00:02]} 27. f3 {[%emt 0:05:12]} Rcxb4 {[%emt 0:00:16]} 28. Rd2 {[%emt 0:01:26]} Rb2 {[%emt 0:00:26]} 29. Red1 {[%emt 0:01:11]} R5b3 {[%emt 0:00:25]} 30. Kf2 {[%emt 0:02:07]} h5 {[%emt 0:00:17]} 31. h4 {[%emt 0:00:45]} Kg7 {[%emt 0:00:29]} 32. f4 {[%emt 0:02:42]} Kf6 {[%emt 0:00:42]} 33. Rxb2 {[%emt 0:02:34]} Rxb2+ {[%emt 0:00:02]} 34. Kf3 {[%emt 0:00:31]} Rb3+ {[%emt 0:00:02]} 35. Kf2 {[%emt 0:00:14]} Rc3 {[%emt 0:00:17]} 36. Rd5 {[%emt 0:01:31]} Ke6 {[%emt 0:01:15]} 37. Ra5 {[%emt 0:04:27]} Rc5 {[%emt 0:00:10]} 38. Ra7 {[%emt 0:00:35]} d5 {[%emt 0:02:22]} 39. Ra6+ {[%emt 0:01:39]} Kd7 {[%emt 0:00:01]} 40. exd5 {[%emt 0:01:34]} Rxd5 {[%emt 0:00:02]} 41. Ke3 {[%emt 0:00:43]} Rd6 {[%emt 0:00:05]} 42. Ra5 {[%emt 0:01:31]} Ke6 {[%emt 0:00:19]} 43. Re5+ {[%emt 0:00:38]} Kf6 {[%emt 0:00:06]} 44. Kf3 {[%emt 0:01:13]} Rd3+ {[%emt 0:00:11]} 45. Kf2 {[%emt 0:00:14]} e6 {[%emt 0:01:31]} 46. Kg2 {[%emt 0:00:30]} Rd5 {[%emt 0:00:06]} 47. Re3 {[%emt 0:00:31]} Kf5 {[%emt 0:00:06]} 48. Kf3 {[%emt 0:00:38]} f6 {[%emt 0:00:08]} 49. Ra3 {[%emt 0:01:10]} Rb5 {[%emt 0:00:19]} 50. Rc3 {[%emt 0:00:32]} e5 {[%emt 0:00:39]} 51. fxe5 {[%emt 0:01:08]} fxe5 {[%emt 0:00:01]} 52. Rc6 {[%emt 0:04:31]} Rb3+ {[%emt 0:02:42]} 53. Kf2 {[%emt 0:00:32]} Rb8 {[%emt 0:00:34]} 54. Ra6 {[%emt 0:00:36]} Rf8 {[%emt 0:00:13]} 55. Ra4 {[%emt 0:01:18]} Rf6 {[%emt 0:00:13]} 56. Ke3 {[%emt 0:01:17]} Rd6 {[%emt 0:00:32]} 57. Rb4 {[%emt 0:00:51]} Ra6 {[%emt 0:01:22]} 58. Kf3 {[%emt 0:02:22]} Ra3+ {[%emt 0:00:07]} 59. Kg2 {[%emt 0:00:21]} Rd3 {[%emt 0:01:43]} 60. Rb6 {[%emt 0:00:45]} Rd4 {[%emt 0:00:14]} 61. Ra6 {[%emt 0:00:47]} Rd5 {[%emt 0:01:38]} 62. Rb6 {[%emt 0:01:04]} e4 {[%emt 0:00:12]} 63. Kf2 {[%emt 0:02:40]} Ra5 {[%emt 0:00:10]} 64. Ke3 {[%emt 0:00:35]} Ra3+ {[%emt 0:00:32]} 65. Kf2 {[%emt 0:00:26]} Ra5 {[%emt 0:00:37]} 66. Rc6 {[%emt 0:00:33]} Re5 {[%emt 0:00:45]} 67. Ke3 {[%emt 0:00:14]} Rb5 {[%emt 0:00:08]} 68. Kf2 {[%emt 0:00:18]} g5 {[%emt 0:00:18]} 69. hxg5 {[%emt 0:00:23]} Rb2+ {[%emt 0:00:02]} 70. Kg1 {[%emt 0:00:21]} Kxg5 {[%emt 0:01:11]} 71. Re6 {[%emt 0:00:53]} Kf5 {[%emt 0:00:07]} 72. Re8 {[%emt 0:00:08]} Re2 {[%emt 0:01:59]} 73. Kf1 {[%emt 0:00:20]} Rh2 {[%emt 0:00:18]} 74. Kg1 {[%emt 0:00:14]} Rb2 {[%emt 0:00:02]} 75. Re7 {[%emt 0:00:15]} Ra2 {[%emt 0:01:32]} 76. Re8 {[%emt 0:00:08]} h4 {[%emt 0:00:05]} 77. gxh4 {[%emt 0:00:12]} Kf4 {[%emt 0:00:01]} 78. h5 {[%emt 0:00:11]} Kf3 {[%emt 0:00:20]} 79. Rf8+ {[%emt 0:00:15]} Kg3 {[%emt 0:00:15]} 80. Rg8+ {[%emt 0:00:05]} Kf3 {[%emt 0:01:09]} 81. Rf8+ {[%emt 0:00:08]} Ke3 {[%emt 0:00:20]} 82. h6 {[%emt 0:00:08]} Ra7 {[%emt 0:00:02]} 83. Rf6 {[%emt 0:00:18]} Ke2 {[%emt 0:00:09]} 84. Kg2 {[%emt 0:00:51]} e3 {[%emt 0:00:05]} 85. Re6 {[%emt 0:00:18]} Kd2 {[%emt 0:01:18]} 86. Kg3 {[%emt 0:00:26]} e2 {[%emt 0:00:10]} 87. Kg4 {[%emt 0:00:17]} Ra6 {[%emt 0:00:10]} 88. Rxe2+ {[%emt 0:00:24]} Kxe2 {[%emt 0:00:05]} 89. Kg5 {[%emt 0:00:03]} Kf3 {[%emt 0:00:28]} 90. h7 {[%emt 0:00:05]} Ra8 {[%emt 0:00:01]} 91. Kg6 {[%emt 0:00:03]} Kg4 {[%emt 0:00:11]} 92. Kg7 {[%emt 0:00:05]} Kg5 {[%emt 0:00:11]} 93. h8=Q {[%emt 0:00:32]} Rxh8 {[%emt 0:00:05]} 1/2-1/2

[Event "Gibraltar Challengers B 2020"]
[Site "Caleta"]
[Date "2020.01.26"]
[Round "2.14"]
[White "Ankitha, Goud Palle"]
[Black "Longa Yauca, Javier"]
[Result "0-1"]
[ECO "A12"]
[WhiteElo "1761"]
[BlackElo "2154"]
[Annotator "ChessBase"]
[PlyCount "80"]
[EventDate "2020.01.20"]
[EventType "swiss"]
[EventCountry "GGB"]
[SourceTitle "playchess.com"]
[Source "ChessBase"]
[SourceQuality "1"]
[TimeControl "6600+10"]

1. Nf3 {[%emt 0:06:23]} d5 {[%emt 0:00:09]} 2. c4 {[%emt 0:00:06]} c6 {[%emt 0:00:16]} 3. b3 {[%emt 0:00:10]} Nf6 {[%emt 0:00:19]} 4. g3 {[%emt 0:00:05]} Bf5 {[%emt 0:00:29]} 5. Bg2 {[%emt 0:00:08]} e6 {[%emt 0:00:18]} 6. O-O {[%emt 0:00:22]} h6 {[%emt 0:00:11]} 7. Bb2 {[%emt 0:00:14]} Be7 {[%emt 0:00:23]} 8. d3 {[%emt 0:00:21]} O-O {[%emt 0:00:13]} 9. Nbd2 {[%emt 0:01:25]} Bh7 {[%emt 0:00:26]} 10. a3 {[%emt 0:03:20]} a5 {[%emt 0:00:19]} 11. Bc3 {[%emt 0:05:25]} Na6 {[%emt 0:02:46]} 12. Qb1 {[%emt 0:03:39]} Nc5 {[%emt 0:02:49]} 13. Ra2 {[%emt 0:02:54]} b5 {[%emt 0:10:42]} 14. Ne5 {[%emt 0:12:43]} Qd6 {[%emt 0:01:53]} 15. Qa1 {[%emt 0:02:23]} bxc4 {[%emt 0:07:04]} 16. bxc4 {[%emt 0:02:53]} Na4 {[%emt 0:00:45]} 17. Bd4 {[%emt 0:01:59]} c5 {[%emt 0:01:44]} 18. Be3 {[%emt 0:01:16]} Rac8 {[%emt 0:02:56]} 19. d4 {[%emt 0:02:17]} Rfd8 {[%emt 0:02:23]} 20. cxd5 {[%emt 0:04:11]} Nxd5 {[%emt 0:00:55]} 21. dxc5 {[%emt 0:02:59]} Qa6 {[%emt 0:00:23]} 22. Bd4 {[%emt 0:04:21]} Bxc5 {[%emt 0:05:15]} 23. Nb3 {[%emt 0:14:46]} Bxd4 {[%emt 0:02:44]} 24. Nxd4 {[%emt 0:00:17]} f6 {[%emt 0:02:08]} 25. Nef3 {[%emt 0:08:59]} e5 {[%emt 0:00:36]} 26. Nb3 {[%emt 0:03:38]} Nac3 {[%emt 0:00:30]} 27. Rd2 {[%emt 0:00:37]} Nxe2+ {[%emt 0:00:26]} 28. Kh1 {[%emt 0:00:34]} a4 {[%emt 0:00:25]} 29. Nc1 {[%emt 0:03:31]} Nec3 {[%emt 0:00:50]} 30. Na2 {[%emt 0:02:28]} Ne4 {[%emt 0:06:13]} 31. Rdd1 {[%emt 0:06:52]} Qb6 {[%emt 0:01:03]} 32. Kg1 {[%emt 0:01:33]} Rc2 {[%emt 0:00:59]} 33. Nb4 {[%emt 0:01:06]} Rxf2 {[%emt 0:01:36]} 34. Rxf2 {[%emt 0:02:05]} Qxf2+ {[%emt 0:00:10]} 35. Kh1 {[%emt 0:00:03]} Qxg2+ {[%emt 0:02:36]} 36. Kxg2 {[%emt 0:00:31]} Ne3+ {[%emt 0:00:07]} 37. Kh3 {[%emt 0:02:10]} Nf2+ {[%emt 0:01:17]} 38. Kh4 {[%emt 0:00:16]} Ng2+ {[%emt 0:00:19]} 39. Kh5 {[%emt 0:01:12]} g6+ {[%emt 0:00:11]} 40. Kxh6 {[%emt 0:00:24]} Ng4# {[%emt 0:00:08]} 0-1

[Event "Gibraltar Challengers B 2020"]
[Site "Caleta"]
[Date "2020.01.26"]
[Round "2.15"]
[White "Royset, Pal"]
[Black "Raghav, Srivathsav V"]
[Result "1-0"]
[ECO "B07"]
[WhiteElo "2151"]
[BlackElo "2023"]
[Annotator "ChessBase"]
[PlyCount "129"]
[EventDate "2020.01.20"]
[EventType "swiss"]
[EventCountry "GGB"]
[SourceTitle "playchess.com"]
[Source "ChessBase"]
[SourceQuality "1"]
[TimeControl "6600+10"]

1. e4 {[%emt 0:00:00]} d6 {[%emt 0:07:04]} 2. d4 {[%emt 0:00:25]} Nf6 {[%emt 0:00:09]} 3. Nc3 {[%emt 0:00:12]} g6 {[%emt 0:00:04]} 4. g3 {[%emt 0:00:55]} Bg7 {[%emt 0:00:05]} 5. Bg2 {[%emt 0:00:07]} O-O {[%emt 0:00:05]} 6. Nge2 {[%emt 0:00:42]} c6 {[%emt 0:00:09]} 7. O-O {[%emt 0:00:34]} e5 {[%emt 0:00:10]} 8. h3 {[%emt 0:01:49]} b5 {[%emt 0:00:23]} 9. Be3 {[%emt 0:06:19]} Bb7 {[%emt 0:03:27]} 10. dxe5 {[%emt 0:04:18]} dxe5 {[%emt 0:00:08]} 11. Qxd8 {[%emt 0:03:25]} Rxd8 {[%emt 0:00:07]} 12. Nc1 {[%emt 0:00:46]} Nfd7 {[%emt 0:04:10]} 13. Nb3 {[%emt 0:01:20]} a5 {[%emt 0:00:54]} 14. Rfd1 {[%emt 0:02:22]} Re8 {[%emt 0:00:07]} 15. a4 {[%emt 0:08:54]} b4 {[%emt 0:00:33]} 16. Na2 {[%emt 0:00:46]} Bf8 {[%emt 0:00:22]} 17. Bf1 {[%emt 0:05:14]} Ba6 {[%emt 0:01:38]} 18. Bxa6 {[%emt 0:01:41]} Rxa6 {[%emt 0:00:02]} 19. Rd3 {[%emt 0:03:14]} c5 {[%emt 0:00:37]} 20. Nd2 {[%emt 0:02:23]} Nb6 {[%emt 0:00:25]} 21. b3 {[%emt 0:00:51]} Nc6 {[%emt 0:00:22]} 22. c3 {[%emt 0:04:31]} c4 {[%emt 0:07:43]} 23. bxc4 {[%emt 0:10:17]} Nxa4 {[%emt 0:01:09]} 24. cxb4 {[%emt 0:02:17]} axb4 {[%emt 0:00:05]} 25. Nc1 {[%emt 0:01:06]} Rea8 {[%emt 0:00:15]} 26. Ncb3 {[%emt 0:01:47]} f5 {[%emt 0:08:20]} 27. f3 {[%emt 0:01:18]} Nc3 {[%emt 0:06:28]} 28. Rxa6 {[%emt 0:07:23]} Rxa6 {[%emt 0:01:28]} 29. Kf1 {[%emt 0:02:39]} Ra2 {[%emt 0:00:47]} 30. g4 {[%emt 0:02:17]} f4 {[%emt 0:03:39]} 31. Bb6 {[%emt 0:00:19]} Be7 {[%emt 0:03:40]} 32. Rd7 {[%emt 0:00:22]} Kf8 {[%emt 0:03:06]} 33. Rc7 {[%emt 0:04:59]} Nd4 {[%emt 0:00:44]} 34. Bxd4 {[%emt 0:00:22]} exd4 {[%emt 0:00:27]} 35. Rd7 {[%emt 0:01:19]} Ke8 {[%emt 0:02:38]} 36. Rxd4 {[%emt 0:01:17]} Rb2 {[%emt 0:00:15]} 37. c5 {[%emt 0:01:51]} Nb1 {[%emt 0:00:28]} 38. c6 {[%emt 0:00:45]} Bd8 {[%emt 0:03:54]} 39. Ke1 {[%emt 0:04:27]} Bb6 {[%emt 0:00:12]} 40. Rd3 {[%emt 0:01:38]} Nxd2 {[%emt 0:01:25]} 41. Nxd2 {[%emt 0:00:27]} Rc2 {[%emt 0:00:06]} 42. Rb3 {[%emt 0:02:57]} Ba5 {[%emt 0:00:53]} 43. Ke2 {[%emt 0:02:39]} Rxc6 {[%emt 0:01:03]} 44. Kd3 {[%emt 0:00:13]} Rd6+ {[%emt 0:02:19]} 45. Kc2 {[%emt 0:00:05]} Rc6+ {[%emt 0:00:05]} 46. Kb2 {[%emt 0:00:20]} Rc3 {[%emt 0:00:33]} 47. e5 {[%emt 0:00:21]} Ke7 {[%emt 0:01:07]} 48. Ne4 {[%emt 0:00:42]} Re3 {[%emt 0:03:22]} 49. Rxe3 {[%emt 0:03:57]} fxe3 {[%emt 0:00:08]} 50. Ng3 {[%emt 0:00:04]} g5 {[%emt 0:00:37]} 51. Nf5+ {[%emt 0:00:06]} Ke6 {[%emt 0:01:10]} 52. Nxe3 {[%emt 0:00:06]} Bc7 {[%emt 0:00:16]} 53. Kb3 {[%emt 0:00:55]} Kxe5 {[%emt 0:00:16]} 54. Kxb4 {[%emt 0:00:10]} Kf4 {[%emt 0:05:06]} 55. Nd5+ {[%emt 0:00:38]} Kxf3 {[%emt 0:02:58]} 56. Nxc7 {[%emt 0:00:07]} Kg3 {[%emt 0:00:04]} 57. Nd5 {[%emt 0:00:27]} Kxh3 {[%emt 0:00:14]} 58. Nf6 {[%emt 0:00:06]} Kg3 {[%emt 0:00:45]} 59. Kc5 {[%emt 0:00:14]} Kf4 {[%emt 0:00:53]} 60. Kd6 {[%emt 0:00:53]} h5 {[%emt 0:01:36]} 61. gxh5 {[%emt 0:00:12]} Kf5 {[%emt 0:00:10]} 62. Ke7 {[%emt 0:01:01]} g4 {[%emt 0:00:06]} 63. Nxg4 {[%emt 0:01:10]} Kg5 {[%emt 0:00:04]} 64. Nf6 {[%emt 0:01:00]} Kh6 {[%emt 0:00:05]} 65. Kf7 {[%emt 0:00:08]} 1-0

[Event "Gibraltar Challengers B 2020"]
[Site "Caleta"]
[Date "2020.01.26"]
[Round "2.16"]
[White "Ashwani, Kumar Grover"]
[Black "Voiteanu, Gabriel"]
[Result "0-1"]
[ECO "C45"]
[WhiteElo "1731"]
[BlackElo "2133"]
[Annotator "ChessBase"]
[PlyCount "81"]
[EventDate "2020.01.20"]
[EventType "swiss"]
[EventCountry "GGB"]
[SourceTitle "playchess.com"]
[Source "ChessBase"]
[SourceQuality "1"]
[TimeControl "6600+10"]

1. e4 {[%emt 0:05:54]} e5 {[%emt 0:00:02]} 2. Nf3 {[%emt 0:00:20]} Nc6 {[%emt 0:00:12]} 3. d4 {[%emt 0:01:30]} exd4 {[%emt 0:00:14]} 4. Nxd4 {[%emt 0:00:22]} Nf6 {[%emt 0:00:11]} 5. Nxc6 {[%emt 0:00:24]} bxc6 {[%emt 0:00:03]} 6. e5 {[%emt 0:00:14]} Qe7 {[%emt 0:00:11]} 7. Qe2 {[%emt 0:00:07]} Nd5 {[%emt 0:00:08]} 8. c4 {[%emt 0:01:37]} Nb6 {[%emt 0:00:46]} 9. Nc3 {[%emt 0:00:34]} Qe6 {[%emt 0:00:32]} 10. Qe4 {[%emt 0:09:30]} g6 {[%emt 0:00:34]} 11. Bd3 {[%emt 0:02:23]} Bg7 {[%emt 0:03:46]} 12. Bf4 {[%emt 0:06:53]} Ba6 {[%emt 0:04:53]} 13. b3 {[%emt 0:13:12]} d5 {[%emt 0:01:34]} 14. cxd5 {[%emt 0:08:25]} cxd5 {[%emt 0:01:23]} 15. Qe2 {[%emt 0:11:16]} Bxd3 {[%emt 0:00:08]} 16. Qxd3 {[%emt 0:00:09]} Bxe5 {[%emt 0:00:22]} 17. Bxe5 {[%emt 0:01:54]} Qxe5+ {[%emt 0:00:01]} 18. Qe3 {[%emt 0:03:59]} Qxe3+ {[%emt 0:02:05]} 19. fxe3 {[%emt 0:00:02]} f5 {[%emt 0:00:40]} 20. Kf2 {[%emt 0:01:50]} a5 {[%emt 0:02:03]} 21. Rhd1 {[%emt 0:01:01]} c6 {[%emt 0:02:15]} 22. a4 {[%emt 0:02:14]} Nd7 {[%emt 0:02:39]} 23. Ne2 {[%emt 0:00:20]} Ne5 {[%emt 0:02:41]} 24. h3 {[%emt 0:01:02]} Kd7 {[%emt 0:01:32]} 25. Rac1 {[%emt 0:00:53]} Kd6 {[%emt 0:00:59]} 26. Nd4 {[%emt 0:01:24]} Rab8 {[%emt 0:00:59]} 27. Rc3 {[%emt 0:00:36]} Rb7 {[%emt 0:16:21]} 28. Ke2 {[%emt 0:04:15]} Ra8 {[%emt 0:01:42]} 29. Rdc1 {[%emt 0:09:50]} Ra6 {[%emt 0:00:13]} 30. g4 {[%emt 0:03:28]} fxg4 {[%emt 0:03:49]} 31. hxg4 {[%emt 0:00:45]} h6 {[%emt 0:02:07]} 32. Rg1 {[%emt 0:08:32]} Re7 {[%emt 0:01:57]} 33. g5 {[%emt 0:01:54]} h5 {[%emt 0:01:30]} 34. Rf1 {[%emt 0:06:03]} Rf7 {[%emt 0:01:54]} 35. Rd1 {[%emt 0:01:51]} Nd7 {[%emt 0:02:21]} 36. Nf3 {[%emt 0:00:57]} Nc5 {[%emt 0:00:50]} 37. Nh4 {[%emt 0:00:16]} Ne4 {[%emt 0:00:43]} 38. Rcc1 {[%emt 0:00:08]} Rf2+ {[%emt 0:00:49]} 39. Ke1 {[%emt 0:00:11]} Rb6 {[%emt 0:01:03]} 40. Rd3 {[%emt 0:00:11]} Rh2 {[%emt 0:00:18]} 41. Nf3 {[%emt 0:00:09] Ke5} 0-1

[Event "Gibraltar Challengers B 2020"]
[Site "Caleta"]
[Date "2020.01.26"]
[Round "2.17"]
[White "Kandic, Milan"]
[Black "Cannon, Richard J"]
[Result "1/2-1/2"]
[ECO "C12"]
[WhiteElo "2132"]
[BlackElo "1990"]
[Annotator "ChessBase"]
[PlyCount "71"]
[EventDate "2020.01.20"]
[EventType "swiss"]
[EventCountry "GGB"]
[SourceTitle "playchess.com"]
[Source "ChessBase"]
[SourceQuality "1"]
[TimeControl "6600+10"]

1. e4 {[%emt 0:06:02]} e6 {[%emt 0:04:32]} 2. d4 {[%emt 0:00:04]} d5 {[%emt 0:00:04]} 3. Nc3 {[%emt 0:00:04]} Nf6 {[%emt 0:00:07]} 4. Bg5 {[%emt 0:00:04]} Bb4 {[%emt 0:00:06]} 5. e5 {[%emt 0:00:04]} h6 {[%emt 0:00:05]} 6. Bc1 {[%emt 0:00:03]} Ne4 {[%emt 0:00:07]} 7. Qg4 {[%emt 0:00:04]} g6 {[%emt 0:00:05]} 8. Nge2 {[%emt 0:00:40]} Nxc3 {[%emt 0:00:21]} 9. Nxc3 {[%emt 0:00:17]} c5 {[%emt 0:00:47]} 10. a3 {[%emt 0:00:32]} Bxc3+ {[%emt 0:01:26]} 11. bxc3 {[%emt 0:00:22]} Qa5 {[%emt 0:00:33]} 12. Bd2 {[%emt 0:00:32]} Qa4 {[%emt 0:01:03]} 13. Bd3 {[%emt 0:00:34]} c4 {[%emt 0:03:13]} 14. Bxg6 {[%emt 0:10:26]} Rg8 {[%emt 0:00:17]} 15. Bxf7+ {[%emt 0:00:05]} Kxf7 {[%emt 0:00:05]} 16. Qh5+ {[%emt 0:04:22]} Rg6 {[%emt 0:02:09]} 17. Ra2 {[%emt 0:08:33]} Kg7 {[%emt 0:04:35]} 18. h4 {[%emt 0:04:16]} Qd7 {[%emt 0:26:17]} 19. Rh3 {[%emt 0:01:49]} Kh7 {[%emt 0:03:12]} 20. Rf3 {[%emt 0:04:56]} Qg7 {[%emt 0:08:01]} 21. g4 {[%emt 0:04:31]} Bd7 {[%emt 0:09:05]} 22. g5 {[%emt 0:03:12]} Be8 {[%emt 0:00:56]} 23. Qg4 {[%emt 0:06:32]} hxg5 {[%emt 0:13:14]} 24. hxg5 {[%emt 0:22:49]} Nd7 {[%emt 0:03:15]} 25. Ke2 {[%emt 0:09:48]} Bf7 {[%emt 0:00:53]} 26. Rh3+ {[%emt 0:01:12]} Kg8 {[%emt 0:00:08]} 27. f4 {[%emt 0:01:34]} Kf8 {[%emt 0:02:52]} 28. Ra1 {[%emt 0:00:24]} Ke7 {[%emt 0:00:58]} 29. Rah1 {[%emt 0:00:06]} Bg8 {[%emt 0:00:22]} 30. a4 {[%emt 0:04:45]} Qf7 {[%emt 0:06:35]} 31. Rh6 {[%emt 0:03:15]} Nf8 {[%emt 0:02:48]} 32. Bc1 {[%emt 0:00:23]} Qf5 {[%emt 0:00:45]} 33. Ba3+ {[%emt 0:00:14]} Kf7 {[%emt 0:00:08]} 34. Qxf5+ {[%emt 0:01:17]} exf5 {[%emt 0:00:02]} 35. Rb1 {[%emt 0:01:42]} b6 {[%emt 0:01:27]} 36. Bxf8 {[%emt 0:01:39]} 1/2-1/2

[Event "Gibraltar Challengers B 2020"]
[Site "Caleta"]
[Date "2020.01.26"]
[Round "2.19"]
[White "Ruperez, Miguel"]
[Black "Pakmor, Claus"]
[Result "1-0"]
[ECO "D35"]
[WhiteElo "2126"]
[BlackElo "1937"]
[Annotator "NA"]
[PlyCount "115"]
[EventDate "2020.01.20"]
[EventType "swiss"]
[EventCountry "GGB"]
[SourceTitle "playchess.com"]
[Source "ChessBase"]
[SourceQuality "1"]
[TimeControl "6600+10"]

1. d4 {[%emt 0:00:10]} d5 {[%emt 0:00:13]} 2. c4 {[%emt 0:00:08]} e6 {[%emt 0:00:12]} 3. Nc3 {[%emt 0:00:09]} Nf6 {[%emt 0:00:18]} 4. cxd5 {[%emt 0:00:31]} exd5 {[%emt 0:00:09]} 5. Bg5 {[%emt 0:00:11]} c6 {[%emt 0:01:32]} 6. e3 {[%emt 0:00:57]} Be7 {[%emt 0:00:12]} 7. Bd3 {[%emt 0:00:52]} Nbd7 {[%emt 0:00:28]} 8. Nge2 {[%emt 0:00:52]} h6 {[%emt 0:01:06]} 9. Bh4 {[%emt 0:00:27]} Nh5 {[%emt 0:01:33]} 10. Bxe7 {[%emt 0:00:44]} Qxe7 {[%emt 0:00:09]} 11. Qd2 {[%emt 0:00:30]} Nb6 {[%emt 0:01:54]} 12. f3 {[%emt 0:01:38]} Be6 {[%emt 0:14:14]} 13. O-O {[%emt 0:01:41]} O-O {[%emt 0:00:44]} 14. g4 {[%emt 0:02:35]} Nf6 {[%emt 0:00:57]} 15. Ng3 {[%emt 0:00:15]} c5 {[%emt 0:12:31]} 16. Rae1 {[%emt 0:03:26]} Rae8 {[%emt 0:07:57]} 17. Kg2 {[%emt 0:17:42]} Nc8 $14 {[%emt 0:26:30]} 18. h4 {[%emt 0:06:21]} c4 {[%emt 0:16:57]} 19. Bb1 {[%emt 0:01:14]} Qd7 {[%emt 0:00:26]} 20. Qc2 {[%emt 0:06:11]} g6 {[%emt 0:00:50]} 21. h5 {[%emt 0:01:43]} Ne7 {[%emt 0:00:52]} 22. Nce2 {[%emt 0:14:25]} Kg7 {[%emt 0:06:00]} 23. Nf4 {[%emt 0:06:33]} g5 {[%emt 0:01:06]} 24. Nh3 {[%emt 0:13:47]} Rh8 {[%emt 0:01:04]} 25. Qd2 {[%emt 0:02:02]} Rhg8 {[%emt 0:04:27]} 26. Nf2 {[%emt 0:01:23]} Kh8 {[%emt 0:01:09]} 27. Qc2 {[%emt 0:01:23]} Rg7 {[%emt 0:00:11]} 28. a4 {[%emt 0:06:06]} b6 {[%emt 0:00:38]} 29. b3 {[%emt 0:00:21]} Rc8 {[%emt 0:00:23]} 30. Ba2 {[%emt 0:04:55]} Nc6 {[%emt 0:01:44]} 31. Qc3 {[%emt 0:01:23]} cxb3 {[%emt 0:00:11]} 32. Qxb3 {[%emt 0:01:26]} Na5 {[%emt 0:00:14]} 33. Qd1 {[%emt 0:01:02]} Nc4 {[%emt 0:00:18]} 34. Nd3 {[%emt 0:00:24]} Rgg8 {[%emt 0:00:24]} 35. Ne5 {[%emt 0:00:43]} Nxe5 {[%emt 0:00:28]} 36. dxe5 {[%emt 0:00:06]} Nh7 {[%emt 0:00:11]} 37. Bb1 {[%emt 0:00:38]} Rgd8 {[%emt 0:00:21]} 38. Nf5 {[%emt 0:01:12]} Rc4 {[%emt 0:01:28]} 39. Nxh6 {[%emt 0:01:11]} Qxa4 {[%emt 0:00:08]} 40. Qd3 {[%emt 0:01:41]} Nf8 {[%emt 0:00:16]} 41. Nxf7+ {[%emt 0:02:11]} Bxf7 {[%emt 0:00:12]} 42. Qf5 {[%emt 0:00:06]} Qd7 {[%emt 0:00:16]} 43. Qf6+ {[%emt 0:00:13]} Kg8 {[%emt 0:00:11]} 44. Qxg5+ {[%emt 0:00:23]} Kh8 {[%emt 0:00:25]} 45. Qf6+ {[%emt 0:01:53]} Kg8 {[%emt 0:00:02]} 46. h6 {[%emt 0:00:32]} Be8 {[%emt 0:00:53]} 47. h7+ {[%emt 0:02:09]} Nxh7 {[%emt 0:00:03]} 48. Bxh7+ {[%emt 0:00:02]} Qxh7 {[%emt 0:00:26]} 49. Rh1 {[%emt 0:00:24]} Qg7 {[%emt 0:00:22]} 50. Qxd8 {[%emt 0:00:27]} Rc2+ {[%emt 0:01:04]} 51. Kg3 {[%emt 0:00:10]} Qxe5+ {[%emt 0:00:02]} 52. f4 {[%emt 0:00:01]} Qe4 {[%emt 0:00:19]} 53. Qg5+ {[%emt 0:00:23]} Bg6 {[%emt 0:00:03]} 54. Rh2 {[%emt 0:00:24]} Rxh2 {[%emt 0:00:19]} 55. Kxh2 {[%emt 0:00:02]} d4 {[%emt 0:00:00]} 56. Qd8+ {[%emt 0:00:10]} Kf7 {[%emt 0:00:05]} 57. Qd7+ {[%emt 0:00:16]} Kf8 {[%emt 0:00:02]} 58. Qxd4 {[%emt 0:00:14]} 1-0